fUSD/lending_fUSD_20250507
["ID","MTS","AMOUNT","RATE_DAILY","PERIOD"]
[360153587,1746579042309,-450.0,0.0001958,2]
[360153588,1746579042318,-450.0,0.0001958,2]
[360153589,1746579042328,-733.38,0.0001958,2]
[360153590,1746579042337,-450.0,0.0001958,2]
[360153591,1746579042347,-180.20392329,0.0001958,2]
[360153592,1746579042356,-450.0,0.0001958,2]
[360153593,1746579042365,-450.0,0.0001958,2]
[360153594,1746579042374,-450.0,0.0001958,2]
[360153595,1746579042384,-450.0,0.0001958,2]
[360153596,1746579042394,-450.0,0.0001958,2]
[360153597,1746579042404,-600.32,0.0001958,2]
[360153598,1746579042414,-509.53106383,0.0001958,2]
[360153599,1746579042423,-600.32,0.0001958,2]
[360153600,1746579042433,-1645.74,0.0001958,2]
[360153601,1746579042442,-961.19,0.0001958,2]
[360153602,1746579042451,-450.0,0.0001958,2]
[360153603,1746579042462,-450.0,0.0001958,2]
[360153604,1746579042472,-3357.07,0.0001958,2]
[360153605,1746579042481,-500.0,0.0001958,2]
[360153606,1746579042491,-450.0,0.0001958,2]
[360153607,1746579042501,-450.0,0.0001958,2]
[360153608,1746579042510,-450.0,0.0001958,2]
[360153609,1746579042519,-190.62917693,0.0001958,2]
[360153610,1746579042529,-450.0,0.0001958,2]
[360153611,1746579042538,-450.0,0.0001958,2]
[360153612,1746579042547,-450.0,0.0001958,2]
[360153613,1746579042556,-450.0,0.0001958,2]
[360153614,1746579042681,-450.0,0.0001958,2]
[360153615,1746579042691,-450.0,0.0001958,2]
[360153616,1746579042700,-450.0,0.0001958,2]
[360153617,1746579042712,-450.0,0.0001958,2]
[360153618,1746579042721,-450.0,0.0001958,2]
[360153619,1746579042730,-450.0,0.0001958,2]
[360153620,1746579042740,-450.0,0.0001958,2]
[360153621,1746579042749,-450.0,0.0001958,2]
[360153622,1746579042759,-450.0,0.0001958,2]
[360153623,1746579042767,-450.0,0.0001958,2]
[360153624,1746579042777,-500.0,0.0001958,2]
[360153625,1746579042786,-978.68,0.0001958,2]
[360153626,1746579042795,-361.49376082,0.0001958,2]
[360153627,1746579042805,-872.29,0.0001958,2]
[360153628,1746579042814,-450.0,0.0001958,2]
[360153629,1746579042823,-450.0,0.0001958,2]
[360153630,1746579042832,-450.0,0.0001958,2]
[360153631,1746579042841,-450.0,0.0001958,2]
[360153632,1746579042852,-2775.57,0.0001958,2]
[360153633,1746579042861,-450.0,0.0001958,2]
[360153634,1746579042871,-470.85,0.0001958,2]
[360153635,1746579042880,-450.0,0.0001958,2]
[360153637,1746579042889,-450.0,0.0001958,2]
[360153638,1746579042898,-450.0,0.0001958,2]
[360153639,1746579042908,-924.76,0.0001958,2]
[360153640,1746579042917,-924.76,0.0001958,2]
[360153641,1746579042926,-450.0,0.0001958,2]
[360153642,1746579042934,-450.0,0.0001958,2]
[360153644,1746579042943,-450.0,0.0001958,2]
[360153645,1746579042952,-450.0,0.0001958,2]
[360153646,1746579042964,-450.0,0.0001958,2]
[360153647,1746579042973,-650.0,0.0001958,2]
[360153648,1746579042981,-450.0,0.0001958,2]
[360153650,1746579042991,-450.0,0.0001958,2]
[360153651,1746579043000,-540.57507176,0.0001958,2]
[360153652,1746579043010,-437.05,0.0001958,2]
[360153654,1746579043019,-450.0,0.0001958,2]
[360153656,1746579043028,-450.0,0.0001958,2]
[360153657,1746579043038,-450.0,0.0001958,2]
[360153659,1746579043047,-1213.4,0.0001958,2]
[360153660,1746579043056,-478.74,0.0001958,2]
[360153661,1746579043068,-478.74,0.0001958,2]
[360153662,1746579043077,-663.71,0.0001958,2]
[360153663,1746579043086,-450.0,0.0001958,2]
[360153664,1746579043096,-450.0,0.0001958,2]
[360153665,1746579043106,-475.17163322,0.0001958,2]
[360153666,1746579043116,-500.0,0.0001958,2]
[360153667,1746579043125,-500.0,0.0001958,2]
[360153668,1746579043136,-450.0,0.0001958,2]
[360153669,1746579043146,-450.0,0.0001958,2]
[360153670,1746579043156,-450.0,0.0001958,2]
[360153671,1746579043165,-450.0,0.0001958,2]
[360153672,1746579043175,-450.0,0.0001958,2]
[360153673,1746579043184,-450.0,0.0001958,2]
[360153674,1746579043193,-450.19307129,0.0001958,2]
[360153675,1746579043203,-163.33697972,0.0001958,2]
[360153676,1746579043213,-500.0,0.0001958,2]
[360153677,1746579043222,-192.9050094,0.0001958,2]
[360153678,1746579043232,-500.0,0.0001958,2]
[360153679,1746579043241,-500.0,0.0001958,2]
[360153680,1746579043251,-500.0,0.0001958,2]
[360153681,1746579043260,-500.0,0.0001958,2]
[360153682,1746579043269,-450.0,0.00019581,2]
[360153683,1746579043279,-507.66574456,0.00019581,2]
[360153684,1746579043288,-485.11442644,0.00019581,2]
[360153685,1746579043297,-450.0,0.00019581,2]
[360153686,1746579043307,-481.42725444,0.00019581,2]
[360153687,1746579043316,-459.76474974,0.00019581,2]
[360153688,1746579043325,-450.0,0.00019581,2]
[360153689,1746579043334,-450.0,0.00019581,2]
[360153690,1746579043343,-450.0,0.00019581,2]
[360153691,1746579043353,-450.0,0.00019581,2]
[360153692,1746579043363,-450.0,0.00019581,2]
[360153693,1746579043372,-450.0,0.00019581,2]
[360153694,1746579043381,-450.0,0.00019581,2]
[360153695,1746579043391,-412.98110133,0.00019581,2]
[360153696,1746579043400,-450.0,0.00019581,2]
[360153697,1746579043410,-433.42762938,0.00019581,2]
[360153698,1746579043419,-450.0,0.00019581,2]
[360153699,1746579043428,-479.30573162,0.00019581,2]
[360153700,1746579043438,-450.0,0.00019581,2]
[360153701,1746579043447,-465.07820557,0.00019581,2]
[360153702,1746579043456,-463.55223196,0.00019581,2]
[360153703,1746579043466,-450.0,0.00019581,2]
[360153704,1746579043475,-534.88429947,0.00019581,2]
[360153705,1746579043485,-475.16314777,0.00019581,2]
[360153706,1746579043494,-473.54790288,0.00019581,2]
[360153707,1746579043505,-450.0,0.00019581,2]
[360153708,1746579043514,-487.0687563,0.00019581,2]
[360153709,1746579043523,-203.51758548,0.00019581,2]
[360153710,1746579043532,-393.11438992,0.00019581,2]
[360153711,1746579043541,-450.0,0.00019581,2]
[360153712,1746579043550,-503.13320766,0.00019581,2]
[360153713,1746579043559,-279.80745971,0.00019581,2]
[360153714,1746579043568,-450.0,0.00019581,2]
[360153715,1746579043578,-260.09051039,0.00019581,2]
[360153716,1746579043586,-160.21529045,0.00019581,2]
[360153717,1746579043595,-450.0,0.00019581,2]
[360153718,1746579043605,-216.45762449,0.00019581,2]
[360153719,1746579043614,-451.76309298,0.00019581,2]
[360153720,1746579043623,-450.0,0.00019581,2]
[360153721,1746579043632,-450.0,0.00019581,2]
[360153722,1746579043641,-450.0,0.00019581,2]
[360153723,1746579043650,-500.0,0.00019581,2]
[360153724,1746579043659,-490.0,0.00019581,2]
[360153725,1746579043668,-450.0,0.00019581,2]
[360153726,1746579043677,-450.0,0.00019581,2]
[360153727,1746579043686,-450.0,0.00019581,2]
[360153728,1746579043695,-450.0,0.00019581,2]
[360153729,1746579043704,-450.0,0.00019581,2]
[360153730,1746579043713,-451.77370109,0.00019581,2]
[360153731,1746579043722,-572.35012035,0.00019581,2]
[360153732,1746579043731,-450.0,0.00019581,2]
[360153733,1746579043740,-450.0,0.00019581,2]
[360153734,1746579043749,-450.0,0.00019581,2]
[360153735,1746579043758,-450.0,0.00019581,2]
[360153736,1746579043767,-450.0,0.00019581,2]
[360153737,1746579043776,-450.0,0.00019581,2]
[360153738,1746579043785,-450.0,0.00019581,2]
[360153739,1746579043794,-450.0,0.00019581,2]
[360153740,1746579043803,-450.0,0.00019581,2]
[360153741,1746579043812,-450.0,0.00019581,2]
[360153742,1746579043821,-450.0,0.00019581,2]
[360153743,1746579043830,-450.0,0.00019581,2]
[360153744,1746579043838,-450.46779436,0.00019581,2]
[360153745,1746579043847,-450.0,0.00019581,2]
[360153746,1746579043856,-568.14759759,0.00019581,2]
[360153747,1746579043865,-450.0,0.00019581,2]
[360153748,1746579043874,-514.20490005,0.00019581,2]
[360153749,1746579043883,-500.0,0.00019581,2]
[360153750,1746579043892,-595.71,0.00019581,2]
[360153751,1746579043901,-470.0,0.00019581,2]
[360153752,1746579043911,-450.0,0.00019581,2]
[360153753,1746579043920,-450.0,0.00019581,2]
[360153754,1746579043929,-450.0,0.00019581,2]
[360153755,1746579043938,-450.0,0.00019581,2]
[360153756,1746579043947,-450.0,0.00019581,2]
[360153757,1746579043956,-450.0,0.00019581,2]
[360153758,1746579043965,-450.0,0.00019581,2]
[360153759,1746579043974,-450.0,0.00019581,2]
[360153760,1746579043983,-450.0,0.00019581,2]
[360153761,1746579043992,-450.0,0.00019581,2]
[360153762,1746579044001,-450.0,0.00019581,2]
[360153763,1746579044010,-450.0,0.00019581,2]
[360153764,1746579044019,-262.16,0.00019581,2]
[360153765,1746579044028,-591.35,0.00019581,2]
[360153766,1746579044037,-450.0,0.00019581,2]
[360153767,1746579044046,-450.0,0.00019581,2]
[360153768,1746579044055,-368.96836652,0.00019581,2]
[360153769,1746579044160,-450.0,0.00019581,2]
[360153770,1746579044169,-450.0,0.00019581,2]
[360153771,1746579044178,-450.0,0.00019581,2]
[360153772,1746579044188,-450.0,0.00019581,2]
[360153773,1746579044197,-450.0,0.00019581,2]
[360153774,1746579044207,-450.0,0.00019581,2]
[360153775,1746579044216,-450.0,0.00019581,2]
[360153776,1746579044225,-574.37800027,0.00019581,2]
[360153777,1746579044235,-450.0,0.00019581,2]
[360153778,1746579044244,-337.32,0.00019581,2]
[360153779,1746579044254,-450.0,0.00019581,2]
[360153780,1746579044263,-582.07389186,0.00019581,2]
[360153781,1746579044272,-450.0,0.00019581,2]
[360153782,1746579044281,-450.0,0.00019581,2]
[360153783,1746579044291,-593.28,0.00019581,2]
[360153784,1746579044300,-450.0,0.00019581,2]
[360153785,1746579044309,-450.0,0.00019581,2]
[360153786,1746579044319,-470.0,0.00019581,2]
[360153787,1746579044329,-450.0,0.00019581,2]
[360153788,1746579044338,-450.0,0.00019581,2]
[360153789,1746579044347,-746.52,0.00019581,2]
[360153790,1746579044356,-406.56,0.00019581,2]
[360153791,1746579044365,-450.0,0.00019581,2]
[360153792,1746579044375,-450.0,0.00019581,2]
[360153793,1746579044384,-568.95,0.00019581,2]
[360153794,1746579044393,-450.0,0.00019581,2]
[360153795,1746579044403,-450.0,0.00019581,2]
[360153796,1746579044412,-450.0,0.00019581,2]
[360153797,1746579044421,-450.0,0.00019581,2]
[360153798,1746579044430,-450.0,0.00019581,2]
[360153799,1746579044440,-450.0,0.00019581,2]
[360153800,1746579044449,-154.47378688,0.00019581,2]
[360153801,1746579044460,-571.84,0.00019581,2]
[360153802,1746579044469,-450.0,0.00019581,2]
[360153803,1746579044478,-450.0,0.00019581,2]
[360153804,1746579044487,-450.0,0.00019581,2]
[360153805,1746579044496,-579.0,0.00019581,2]
[360153806,1746579044505,-470.0,0.00019581,2]
[360153807,1746579044515,-450.0,0.00019581,2]
[360153808,1746579044524,-450.0,0.00019581,2]
[360153809,1746579044533,-450.0,0.00019581,2]
[360153810,1746579044542,-450.0,0.00019581,2]
[360153811,1746579044551,-543.23,0.00019581,2]
[360153812,1746579044561,-450.0,0.00019581,2]
[360153813,1746579044570,-450.0,0.00019581,2]
[360153814,1746579044579,-450.0,0.00019581,2]
[360153815,1746579044588,-572.66,0.00019581,2]
[360153816,1746579044598,-450.0,0.00019581,2]
[360153817,1746579044607,-450.0,0.00019581,2]
[360153818,1746579044616,-450.0,0.00019581,2]
[360153819,1746579044625,-450.0,0.00019581,2]
[360153820,1746579044634,-500.0,0.00019581,2]
[360153821,1746579044643,-460.75,0.00019581,2]
[360153822,1746579044653,-508.78,0.00019581,2]
[360153823,1746579044662,-450.0,0.00019581,2]
[360153824,1746579044671,-450.0,0.00019581,2]
[360153825,1746579044681,-450.0,0.00019581,2]
[360153826,1746579044690,-450.0,0.00019581,2]
[360153827,1746579044699,-500.0,0.00019581,2]
[360153828,1746579044709,-450.0,0.00019581,2]
[360153829,1746579044718,-450.0,0.00019581,2]
[360153830,1746579044727,-450.0,0.00019581,2]
[360153831,1746579044736,-450.0,0.00019581,2]
[360153832,1746579044746,-450.0,0.00019581,2]
[360153833,1746579044754,-450.0,0.00019581,2]
[360153834,1746579044763,-450.0,0.00019581,2]
[360153835,1746579044772,-450.0,0.00019581,2]
[360153836,1746579044781,-544.75883708,0.00019581,2]
[360153837,1746579044799,-494.19,0.00019581,2]
[360153838,1746579044815,-470.0,0.00019581,2]
[360153839,1746579044833,-500.76,0.00019581,2]
[360153840,1746579044854,-450.0,0.00019581,2]
[360153841,1746579044870,-535.82,0.00019581,2]
[360153842,1746579044887,-450.0,0.00019581,2]
[360153843,1746579044905,-450.0,0.00019581,2]
[360153844,1746579044924,-450.0,0.00019581,2]
[360153845,1746579044943,-450.0,0.00019581,2]
[360153846,1746579044960,-450.0,0.00019581,2]
[360153847,1746579044978,-763.46,0.00019581,2]
[360153848,1746579044995,-450.0,0.00019581,2]
[360153849,1746579045011,-450.0,0.00019581,2]
[360153850,1746579045029,-162.85260813,0.00019581,2]
[360153851,1746579045041,-2000.0,0.00019581,2]
[360153852,1746579045059,-490.0,0.00019581,2]
[360153853,1746579045075,-450.0,0.00019581,2]
[360153854,1746579045090,-450.0,0.00019581,2]
[360153855,1746579045104,-450.0,0.00019581,2]
[360153856,1746579045119,-450.0,0.00019581,2]
[360153857,1746579045133,-281.17,0.00019581,2]
[360153858,1746579045148,-450.0,0.00019581,2]
[360153859,1746579045164,-450.0,0.00019581,2]
[360153860,1746579045178,-450.0,0.00019581,2]
[360153861,1746579045193,-450.0,0.00019581,2]
[360153862,1746579045207,-450.0,0.00019581,2]
[360153863,1746579045222,-1716.52,0.00019581,2]
[360153864,1746579045236,-450.0,0.00019581,2]
[360153865,1746579045250,-450.0,0.00019581,2]
[360153866,1746579045265,-192.88505064,0.00019581,2]
[360153867,1746579045279,-450.0,0.00019581,2]
[360153868,1746579045293,-450.0,0.00019581,2]
[360153869,1746579045307,-450.0,0.00019581,2]
[360153870,1746579045321,-553.21,0.00019581,2]
[360153871,1746579045335,-731.6,0.00019581,2]
[360153872,1746579045350,-450.0,0.00019581,2]
[360153873,1746579045364,-450.0,0.00019581,2]
[360153874,1746579045377,-450.0,0.00019581,2]
[360153875,1746579045393,-450.0,0.00019581,2]
[360153876,1746579045406,-450.0,0.00019581,2]
[360153877,1746579045421,-450.0,0.00019581,2]
[360153878,1746579045435,-534.8235494,0.00019581,2]
[360153879,1746579045451,-358.0,0.00019581,2]
[360153880,1746579045466,-426.83684839,0.00019581,2]
[360153881,1746579045480,-450.0,0.00019581,2]
[360153882,1746579045496,-470.0,0.00019581,2]
[360153883,1746579045511,-490.0,0.00019581,2]
[360153884,1746579045526,-450.0,0.00019581,2]
[360153885,1746579045543,-1035.97,0.00019581,2]
[360153886,1746579045557,-540.0,0.00019581,2]
[360153887,1746579045571,-450.0,0.00019581,2]
[360153888,1746579045585,-971.78,0.00019581,2]
[360153889,1746579045601,-450.0,0.00019581,2]
[360153890,1746579045616,-1070.3,0.00019581,2]
[360153891,1746579045631,-470.0,0.00019581,2]
[360153892,1746579045645,-986.14,0.00019581,2]
[360153893,1746579045660,-450.0,0.00019581,2]
[360153894,1746579045675,-450.0,0.00019581,2]
[360153895,1746579045689,-450.0,0.00019581,2]
[360153896,1746579045703,-450.0,0.00019581,2]
[360153897,1746579045718,-450.0,0.00019581,2]
[360153898,1746579045731,-450.0,0.00019581,2]
[360153899,1746579045745,-450.0,0.00019581,2]
[360153900,1746579045760,-450.0,0.00019581,2]
[360153901,1746579045774,-450.0,0.00019581,2]
[360153902,1746579045785,-1016.64,0.00019581,2]
[360153903,1746579045794,-450.0,0.00019581,2]
[360153904,1746579045803,-502.44,0.00019581,2]
[360153906,1746579045986,-450.0,0.00019581,2]
[360153909,1746579046012,-450.0,0.00019581,2]
[360153910,1746579046022,-640.03,0.00019581,2]
[360153911,1746579046031,-1077.11,0.00019581,2]
[360153912,1746579046041,-769.74,0.00019581,2]
[360153913,1746579046050,-450.0,0.00019581,2]
[360153914,1746579046059,-807.7,0.00019581,2]
[360153915,1746579046072,-1111.87,0.00019581,2]
[360153916,1746579046082,-453.80387379,0.00019581,2]
[360153917,1746579046091,-450.0,0.00019581,2]
[360153918,1746579046100,-781.53,0.00019581,2]
[360153919,1746579046110,-470.0,0.00019581,2]
[360153920,1746579046120,-450.0,0.00019581,2]
[360153921,1746579046132,-450.0,0.00019581,2]
[360153922,1746579046143,-558.11,0.00019581,2]
[360153923,1746579046153,-320.05712154,0.00019581,2]
[360153924,1746579046162,-450.0,0.00019581,2]
[360153925,1746579046172,-450.0,0.00019581,2]
[360153926,1746579046181,-576.1,0.00019581,2]
[360153927,1746579046191,-450.0,0.00019581,2]
[360153928,1746579046201,-481.06,0.00019581,2]
[360153929,1746579046211,-450.0,0.00019581,2]
[360153930,1746579046221,-1369.68,0.00019581,2]
[360153931,1746579046232,-450.0,0.00019581,2]
[360153932,1746579046242,-1225.82,0.00019581,2]
[360153933,1746579046251,-450.0,0.00019581,2]
[360153934,1746579046261,-450.0,0.00019581,2]
[360153935,1746579046270,-818.97,0.00019581,2]
[360153936,1746579046280,-450.0,0.00019581,2]
[360153937,1746579046289,-470.0,0.00019581,2]
[360153938,1746579046298,-540.34,0.00019581,2]
[360153939,1746579046308,-1676.28,0.00019581,2]
[360153940,1746579046318,-450.0,0.00019581,2]
[360153941,1746579046327,-450.0,0.00019581,2]
[360153942,1746579046337,-450.0,0.00019581,2]
[360153943,1746579046346,-450.0,0.00019581,2]
[360153944,1746579046356,-450.0,0.00019581,2]
[360153945,1746579046365,-487.55,0.00019581,2]
[360153946,1746579046375,-503.72,0.00019581,2]
[360153947,1746579046385,-250.0,0.00019581,2]
[360153948,1746579046395,-523.39,0.00019581,2]
[360153949,1746579046405,-470.0,0.00019581,2]
[360153950,1746579046414,-450.0,0.00019581,2]
[360153951,1746579046424,-2152.83,0.00019581,2]
[360153952,1746579046434,-1732.79,0.00019581,2]
[360153953,1746579046444,-450.0,0.00019581,2]
[360153954,1746579046453,-612.64,0.00019581,2]
[360153955,1746579046462,-450.0,0.00019581,2]
[360153956,1746579046471,-450.0,0.00019581,2]
[360153957,1746579046481,-450.0,0.00019581,2]
[360153958,1746579046490,-450.0,0.00019581,2]
[360153959,1746579046500,-450.0,0.00019581,2]
[360153960,1746579046509,-450.0,0.00019581,2]
[360153961,1746579046518,-450.0,0.00019581,2]
[360153962,1746579046528,-450.0,0.00019581,2]
[360153963,1746579046537,-476.7,0.00019581,2]
[360153964,1746579046547,-1271.21,0.00019581,2]
[360153965,1746579046556,-541.42,0.00019581,2]
[360153966,1746579046566,-450.0,0.00019581,2]
[360153967,1746579046575,-500.21,0.00019581,2]
[360153968,1746579046585,-1850.63,0.00019581,2]
[360153969,1746579046594,-1572.3,0.00019581,2]
[360153970,1746579046603,-1873.5,0.00019581,2]
[360153971,1746579046612,-450.0,0.00019581,2]
[360153972,1746579046621,-450.0,0.00019581,2]
[360153973,1746579046630,-1200.22,0.00019581,2]
[360153974,1746579046640,-734.74,0.00019581,2]
[360153975,1746579046649,-450.0,0.00019581,2]
[360153977,1746579046659,-450.0,0.00019581,2]
[360153978,1746579046668,-720.35,0.00019581,2]
[360153979,1746579046677,-450.0,0.00019581,2]
[360153980,1746579046687,-450.0,0.00019581,2]
[360153981,1746579046697,-450.0,0.00019581,2]
[360153982,1746579046706,-1572.33,0.00019581,2]
[360153983,1746579046715,-470.0,0.00019581,2]
[360153984,1746579046724,-1182.55,0.00019581,2]
[360153985,1746579046734,-666.11,0.00019581,2]
[360153986,1746579046743,-450.0,0.00019581,2]
[360153987,1746579046752,-450.0,0.00019581,2]
[360153988,1746579046762,-470.0,0.00019581,2]
[360153989,1746579046771,-540.0,0.00019581,2]
[360153990,1746579046780,-1961.94,0.00019581,2]
[360153991,1746579046789,-827.76,0.00019581,2]
[360153992,1746579046798,-450.0,0.00019581,2]
[360153993,1746579046808,-450.0,0.00019581,2]
[360153994,1746579046817,-2226.03,0.00019581,2]
[360153995,1746579046826,-2504.18,0.00019581,2]
[360153996,1746579046835,-450.0,0.00019581,2]
[360153997,1746579046844,-450.0,0.00019581,2]
[360153998,1746579046853,-450.0,0.00019581,2]
[360153999,1746579046862,-490.0,0.00019581,2]
[360154000,1746579046870,-1882.58,0.00019581,2]
[360154001,1746579046879,-450.0,0.00019581,2]
[360154002,1746579046888,-651.91,0.00019581,2]
[360154003,1746579046897,-490.0,0.00019581,2]
[360154004,1746579046906,-1381.52,0.00019581,2]
[360154005,1746579046915,-2389.93,0.00019581,2]
[360154006,1746579046924,-751.2,0.00019581,2]
[360154007,1746579046933,-2273.7,0.00019581,2]
[360154008,1746579046946,-2033.95,0.00019581,2]
[360154009,1746579046955,-572.67,0.00019581,2]
[360154010,1746579046965,-490.0,0.00019581,2]
[360154011,1746579046974,-794.1,0.00019581,2]
[360154012,1746579046983,-450.0,0.00019581,2]
[360154013,1746579046992,-951.54,0.00019581,2]
[360154014,1746579047001,-2211.69,0.00019581,2]
[360154015,1746579047010,-2012.09,0.00019581,2]
[360154016,1746579047020,-1321.82,0.00019581,2]
[360154017,1746579047029,-38407.09,0.00019581,2]
[360154018,1746579047038,-1084.99,0.00019581,2]
[360154019,1746579047047,-784.84,0.00019581,2]
[360154020,1746579047057,-450.0,0.00019581,2]
[360154021,1746579047071,-1304.28,0.00019581,2]
[360154022,1746579047082,-461.84,0.00019581,2]
[360154023,1746579047092,-587.34,0.00019581,2]
[360154024,1746579047104,-1205.07,0.00019581,2]
[360154025,1746579047114,-450.0,0.00019581,2]
[360154026,1746579047124,-450.0,0.00019581,2]
[360154027,1746579047133,-287.11790229,0.00019581,2]
[360154028,1746579047142,-450.0,0.00019581,2]
[360154029,1746579047152,-515.22,0.00019581,2]
[360154030,1746579047161,-1129.75,0.00019581,2]
[360154031,1746579047170,-4290.16,0.00019581,2]
[360154032,1746579047179,-450.0,0.00019581,2]
[360154033,1746579047188,-2122.8,0.00019581,2]
[360154034,1746579047197,-450.0,0.00019581,2]
[360154035,1746579047206,-27042.55,0.00019581,2]
[360154036,1746579047216,-243.47060265,0.00019581,2]
[360154037,1746579047226,-979.31,0.00019581,2]
[360154038,1746579047236,-551.9,0.00019581,2]
[360154039,1746579047247,-450.0,0.00019581,2]
[360154040,1746579047256,-450.0,0.00019581,2]
[360154041,1746579047267,-450.0,0.00019581,2]
[360154042,1746579047278,-450.0,0.00019581,2]
[360154043,1746579047287,-450.0,0.00019581,2]
[360154044,1746579047297,-640.74,0.00019581,2]
[360154045,1746579047307,-1484.29,0.00019581,2]
[360154046,1746579047316,-450.0,0.00019581,2]
[360154047,1746579047325,-491.98,0.00019581,2]
[360154048,1746579047335,-450.0,0.00019581,2]
[360154049,1746579047345,-450.0,0.00019581,2]
[360154050,1746579047354,-450.0,0.00019581,2]
[360154051,1746579047364,-1095.8,0.00019581,2]
[360154052,1746579047374,-450.0,0.00019581,2]
[360154053,1746579047383,-2341.8,0.00019581,2]
[360154054,1746579047393,-450.0,0.00019581,2]
[360154055,1746579047402,-450.0,0.00019581,2]
[360154056,1746579047412,-450.0,0.00019581,2]
[360154057,1746579047422,-450.0,0.00019581,2]
[360154058,1746579047430,-450.0,0.00019581,2]
[360154059,1746579047439,-9095.52,0.00019581,2]
[360154060,1746579047449,-651.12,0.00019581,2]
[360154061,1746579047458,-476.41,0.00019581,2]
[360154062,1746579047467,-568.22,0.00019581,2]
[360154063,1746579047477,-450.0,0.00019581,2]
[360154064,1746579047486,-2013.65,0.00019581,2]
[360154065,1746579047495,-450.0,0.00019581,2]
[360154066,1746579047505,-1272.81,0.00019581,2]
[360154067,1746579047514,-801.4,0.00019581,2]
[360154068,1746579047523,-547.43514998,0.00019581,2]
[360154069,1746579047533,-2031.26,0.00019581,2]
[360154070,1746579047543,-595.36,0.00019581,2]
[360154071,1746579047553,-450.0,0.00019581,2]
[360154072,1746579047562,-530.52934709,0.00019581,2]
[360154073,1746579047572,-450.0,0.00019581,2]
[360154074,1746579047582,-450.0,0.00019581,2]
[360154075,1746579047591,-450.0,0.00019581,2]
[360154076,1746579047601,-739.46,0.00019581,2]
[360154077,1746579047610,-605.31,0.00019581,2]
[360154078,1746579047619,-450.0,0.00019581,2]
[360154079,1746579047629,-1021.35,0.00019581,2]
[360154080,1746579047639,-1282.65,0.00019581,2]
[360154081,1746579047649,-450.0,0.00019581,2]
[360154082,1746579047659,-450.0,0.00019581,2]
[360154083,1746579047668,-2005.96,0.00019581,2]
[360154084,1746579047678,-450.0,0.00019581,2]
[360154085,1746579047686,-1989.59,0.00019581,2]
[360154086,1746579047696,-609.25,0.00019581,2]
[360154087,1746579047706,-1736.86,0.00019581,2]
[360154088,1746579047715,-6645.5,0.00019581,2]
[360154089,1746579047725,-201.68514121,0.00019581,2]
[360154090,1746579047735,-494.02654849,0.00019581,2]
[360154091,1746579047744,-450.0,0.00019581,2]
[360154092,1746579047754,-150.33,0.00019581,2]
[360154093,1746579047764,-733.38,0.00019581,2]
[360154094,1746579047774,-450.0,0.00019581,2]
[360154095,1746579047783,-450.0,0.00019581,2]
[360154096,1746579047793,-450.0,0.00019581,2]